[Event "Titled Tuesday Blitz July 05 Late 2022"]
[White "Oparin, Grigoriy"]
[Black "Lashkin, Jegor"]
[WhiteFideId "24125890"]
[BlackFideId "13907808"]
[WhiteElo "2639"]
[BlackElo "2368"]
[Result "1-0"]
[Round "09"]
[TimeControl "180+1"]
[Date "2022.07.05"]
[WhiteClock "0:01:08"]
[BlackClock "0:00:21"]

1. c4 {[%clk 0:03:00]}  e5 {[%clk 0:02:59]} 2. Nc3 {[%clk 0:03:01]}  Nf6 {[%clk 0:02:59]} 3. Nf3 {[%clk 0:03:01]}  Nc6 {[%clk 0:02:59]} 4. e4 {[%clk 0:03:02]}  Bb4 {[%clk 0:02:59]} 5. d3 {[%clk 0:03:01]}  d6 {[%clk 0:02:59]} 6. a3 {[%clk 0:03:02]}  Bc5 {[%clk 0:03:00]} 7. b4 {[%clk 0:02:58]}  Bb6 {[%clk 0:03:00]} 8. Be2 {[%clk 0:02:59]}  Bg4 {[%clk 0:03:00]} 9. Be3 {[%clk 0:02:57]}  Bxf3 {[%clk 0:02:57]} 10. Bxf3 {[%clk 0:02:57]}  Nd4 {[%clk 0:02:54]} 11. Na4 {[%clk 0:02:55]}  Nxf3+ {[%clk 0:02:53]} 12. Qxf3 {[%clk 0:02:56]}  Bxe3 {[%clk 0:02:53]} 13. fxe3 {[%clk 0:02:56]}  O-O {[%clk 0:02:52]} 14. O-O {[%clk 0:02:57]}  c6 {[%clk 0:02:51]} 15. Nc3 {[%clk 0:02:57]}  a5 {[%clk 0:02:45]} 16. b5 {[%clk 0:02:57]}  Qd7 {[%clk 0:02:38]} 17. a4 {[%clk 0:02:56]}  Rad8 {[%clk 0:02:36]} 18. Rab1 {[%clk 0:02:57]}  d5 {[%clk 0:02:27]} 19. Qg3 {[%clk 0:02:44]}  Qe6 {[%clk 0:01:46]} 20. exd5 {[%clk 0:02:39]}  cxd5 {[%clk 0:01:46]} 21. Rxf6 {[%clk 0:02:39]}  Qxf6 {[%clk 0:01:45]} 22. Nxd5 {[%clk 0:02:40]}  Qe6 {[%clk 0:01:35]} 23. h4 {[%clk 0:02:16]}  f5 {[%clk 0:01:30]} 24. Rf1 {[%clk 0:02:14]}  Rxd5 {[%clk 0:01:19]} 25. cxd5 {[%clk 0:02:15]}  Qxd5 {[%clk 0:01:20]} 26. h5 {[%clk 0:02:11]}  f4 {[%clk 0:01:10]} 27. exf4 {[%clk 0:02:05]}  Qd4+ {[%clk 0:01:10]} 28. Qf2 {[%clk 0:02:00]}  Rxf4 {[%clk 0:01:07]} 29. Qxd4 {[%clk 0:01:27]}  Rxd4 {[%clk 0:01:08]} 30. Rc1 {[%clk 0:01:26]}  Rxa4 {[%clk 0:01:02]} 31. Rc7 {[%clk 0:01:27]}  h6 {[%clk 0:00:42]} 32. Rxb7 {[%clk 0:01:26]}  Rb4 {[%clk 0:00:42]} 33. Kf2 {[%clk 0:01:20]}  a4 {[%clk 0:00:41]} 34. Ke3 {[%clk 0:01:19]}  a3 {[%clk 0:00:38]} 35. Ra7 {[%clk 0:01:19]}  Rxb5 {[%clk 0:00:38]} 36. Rxa3 {[%clk 0:01:19]}  e4 {[%clk 0:00:36]} 37. Kxe4 {[%clk 0:01:16]}  Rxh5 {[%clk 0:00:37]} 38. d4 {[%clk 0:01:16]}  Rg5 {[%clk 0:00:35]} 39. Ra2 {[%clk 0:01:12]}  Kf7 {[%clk 0:00:35]} 40. d5 {[%clk 0:01:11]}  Ke7 {[%clk 0:00:35]} 41. Kd4 {[%clk 0:01:11]}  Kd6 {[%clk 0:00:34]} 42. Ra6+ {[%clk 0:01:11]}  Kc7 {[%clk 0:00:30]} 43. Kc5 {[%clk 0:01:08]}  Rxg2 {[%clk 0:00:27]} 44. Ra7+ {[%clk 0:01:08]}  Kb8 {[%clk 0:00:24]} 45. Rf7 {[%clk 0:01:09]}  Rg6 {[%clk 0:00:24]} 46. d6 {[%clk 0:01:06]}  Rg1 {[%clk 0:00:24]} 47. Rf8+ {[%clk 0:01:04]}  Kb7 {[%clk 0:00:24]} 48. d7 {[%clk 0:01:05]}  Rc1+ {[%clk 0:00:22]} 49. Kb4 {[%clk 0:01:05]}  Rd1 {[%clk 0:00:19]} 50. d8=Q {[%clk 0:01:05]}  Rxd8 {[%clk 0:00:19]} 51. Rxd8 {[%clk 0:01:06]}  Kc6 {[%clk 0:00:19]} 52. Rg8 {[%clk 0:01:06]}  g5 {[%clk 0:00:19]} 53. Kc4 {[%clk 0:01:05]}  Kd6 {[%clk 0:00:19]} 54. Kd4 {[%clk 0:01:05]}  Ke6 {[%clk 0:00:20]} 55. Rg6+ {[%clk 0:01:05]}  Kf5 {[%clk 0:00:20]} 56. Rxh6 {[%clk 0:01:06]}  Kf4 {[%clk 0:00:20]} 57. Rf6+ {[%clk 0:01:06]}  Kg3 {[%clk 0:00:21]} 58. Ke3 {[%clk 0:01:07]}  g4 {[%clk 0:00:21]} 59. Rg6 {[%clk 0:01:08]}  Kh3 {[%clk 0:00:21]} 60. Kf4 {[%clk 0:01:08]} 1-0


[Site "https://www.chess.com"]

[Event "Titled Tuesday Blitz July 05 Late 2022"]
[White "Palchuk, Andrii"]
[Black "Swiercz, Dariusz"]
[WhiteFideId "14176688"]
[BlackFideId "1126881"]
[WhiteElo "2338"]
[BlackElo "2627"]
[Result "0-1"]
[Round "09"]
[TimeControl "180+1"]
[Date "2022.07.05"]
[WhiteClock "0:00:03"]
[BlackClock "0:00:14"]

1. d4 {[%clk 0:02:43]}  Nf6 {[%clk 0:02:59]} 2. c4 {[%clk 0:02:43]}  g6 {[%clk 0:02:59]} 3. h4 {[%clk 0:02:41]}  d6 {[%clk 0:02:52]} 4. Nc3 {[%clk 0:02:41]}  Bg7 {[%clk 0:02:51]} 5. e4 {[%clk 0:02:40]}  O-O {[%clk 0:02:50]} 6. Be2 {[%clk 0:02:40]}  c5 {[%clk 0:02:45]} 7. d5 {[%clk 0:02:40]}  e6 {[%clk 0:02:45]} 8. h5 {[%clk 0:02:40]}  exd5 {[%clk 0:02:46]} 9. exd5 {[%clk 0:02:39]}  Re8 {[%clk 0:02:47]} 10. h6 {[%clk 0:02:38]}  Bh8 {[%clk 0:02:47]} 11. Bg5 {[%clk 0:02:34]}  Qb6 {[%clk 0:02:44]} 12. b3 {[%clk 0:02:32]}  Ne4 {[%clk 0:02:42]} 13. Nxe4 {[%clk 0:02:31]}  Rxe4 {[%clk 0:02:43]} 14. Kf1 {[%clk 0:02:31]}  a5 {[%clk 0:02:33]} 15. Bd3 {[%clk 0:02:10]}  Re8 {[%clk 0:02:33]} 16. g3 {[%clk 0:02:04]}  a4 {[%clk 0:02:23]} 17. Rb1 {[%clk 0:02:03]}  axb3 {[%clk 0:02:22]} 18. Rxb3 {[%clk 0:02:01]}  Qa5 {[%clk 0:02:17]} 19. a3 {[%clk 0:01:43]}  Nd7 {[%clk 0:01:58]} 20. Nf3 {[%clk 0:01:42]}  Nf6 {[%clk 0:01:54]} 21. Rh4 {[%clk 0:01:37]}  Ng4 {[%clk 0:01:27]} 22. Bd2 {[%clk 0:01:25]}  Qd8 {[%clk 0:01:23]} 23. Kg2 {[%clk 0:01:19]}  Bf6 {[%clk 0:01:10]} 24. Rh1 {[%clk 0:01:18]}  Bd7 {[%clk 0:01:07]} 25. Qc1 {[%clk 0:01:12]}  Qc8 {[%clk 0:01:03]} 26. Bc3 {[%clk 0:01:09]}  Ne5 {[%clk 0:00:48]} 27. Qf4 {[%clk 0:01:04]}  Bh8 {[%clk 0:00:46]} 28. Ng5 {[%clk 0:01:01]}  Rf8 {[%clk 0:00:45]} 29. Ne4 {[%clk 0:00:55]}  Qd8 {[%clk 0:00:41]} 30. Nxc5 {[%clk 0:00:35]}  Bc8 {[%clk 0:00:34]} 31. Be2 {[%clk 0:00:31]}  Qe7 {[%clk 0:00:28]} 32. Ne4 {[%clk 0:00:29]}  Bf5 {[%clk 0:00:25]} 33. g4 {[%clk 0:00:26]}  Bxe4+ {[%clk 0:00:23]} 34. Qxe4 {[%clk 0:00:27]}  Rae8 {[%clk 0:00:23]} 35. f4 {[%clk 0:00:23]}  f5 {[%clk 0:00:22]} 36. gxf5 {[%clk 0:00:22]}  gxf5 {[%clk 0:00:23]} 37. Qe3 {[%clk 0:00:21]}  Ng6 {[%clk 0:00:23]} 38. Qxe7 {[%clk 0:00:22]}  Rxe7 {[%clk 0:00:24]} 39. Kf3 {[%clk 0:00:14]}  Rfe8 {[%clk 0:00:22]} 40. Bxh8 {[%clk 0:00:14]}  Rxe2 {[%clk 0:00:22]} 41. Bd4 {[%clk 0:00:13]}  R8e4 {[%clk 0:00:20]} 42. Be3 {[%clk 0:00:12]}  Rc2 {[%clk 0:00:19]} 43. Rg1 {[%clk 0:00:10]}  Re7 {[%clk 0:00:18]} 44. c5 {[%clk 0:00:09]}  dxc5 {[%clk 0:00:17]} 45. Rb6 {[%clk 0:00:08]}  Kf7 {[%clk 0:00:17]} 46. d6 {[%clk 0:00:06]}  Rd7 {[%clk 0:00:17]} 47. Rd1 {[%clk 0:00:04]}  Ke6 {[%clk 0:00:16]} 48. a4 {[%clk 0:00:04]}  Rc3 {[%clk 0:00:16]} 49. Kf2 {[%clk 0:00:04]}  Rc2+ {[%clk 0:00:15]} 50. Kf3 {[%clk 0:00:05]}  Rc3 {[%clk 0:00:15]} 51. Kf2 {[%clk 0:00:05]}  Rc4 {[%clk 0:00:16]} 52. a5 {[%clk 0:00:05]}  Nxf4 {[%clk 0:00:15]} 53. Kf3 {[%clk 0:00:03]}  Nd5 {[%clk 0:00:16]} 54. Bd2 {[%clk 0:00:03]}  Rd4 {[%clk 0:00:16]} 55. Rb3 {[%clk 0:00:02]}  Kxd6 {[%clk 0:00:14]} 56. Re1 {[%clk 0:00:03]}  Rxd2 {[%clk 0:00:14]} 0-1


[Site "https://www.chess.com"]

[Event "Titled Tuesday Blitz July 05 Late 2022"]
[White "Papp, Levente"]
[Black "Vovk, Orest"]
[WhiteFideId "751243"]
[BlackFideId "14113490"]
[WhiteElo "2308"]
[BlackElo "2203"]
[Result "0-1"]
[Round "09"]
[TimeControl "180+1"]
[Date "2022.07.06"]
[WhiteClock "0:00:02"]
[BlackClock "0:00:24"]

1. b3 {[%clk 0:03:00]}  Nf6 {[%clk 0:02:59]} 2. Bb2 {[%clk 0:03:01]}  g6 {[%clk 0:03:00]} 3. g3 {[%clk 0:03:01]}  Bg7 {[%clk 0:03:00]} 4. Bg2 {[%clk 0:03:01]}  Nh5 {[%clk 0:03:00]} 5. Bxg7 {[%clk 0:02:58]}  Nxg7 {[%clk 0:03:01]} 6. d4 {[%clk 0:02:58]}  h5 {[%clk 0:03:00]} 7. h4 {[%clk 0:02:57]}  d5 {[%clk 0:02:59]} 8. c4 {[%clk 0:02:56]}  c6 {[%clk 0:02:58]} 9. Nc3 {[%clk 0:02:51]}  Qa5 {[%clk 0:02:58]} 10. Qd2 {[%clk 0:02:50]}  dxc4 {[%clk 0:02:56]} 11. bxc4 {[%clk 0:02:50]}  Nd7 {[%clk 0:02:53]} 12. c5 {[%clk 0:02:27]}  Nf6 {[%clk 0:02:47]} 13. Nf3 {[%clk 0:02:22]}  Be6 {[%clk 0:02:39]} 14. O-O {[%clk 0:02:19]}  Nd5 {[%clk 0:02:27]} 15. Nxd5 {[%clk 0:02:15]}  Qxd2 {[%clk 0:02:27]} 16. Nf6+ {[%clk 0:02:10]}  exf6 {[%clk 0:02:26]} 17. Nxd2 {[%clk 0:02:11]}  O-O-O {[%clk 0:02:21]} 18. e3 {[%clk 0:02:05]}  g5 {[%clk 0:02:21]} 19. Ne4 {[%clk 0:02:03]}  gxh4 {[%clk 0:02:18]} 20. gxh4 {[%clk 0:02:00]}  Nf5 {[%clk 0:02:18]} 21. Nxf6 {[%clk 0:01:45]}  Nxh4 {[%clk 0:02:17]} 22. Kh2 {[%clk 0:01:40]}  Nxg2 {[%clk 0:01:51]} 23. Kxg2 {[%clk 0:01:39]}  Rh6 {[%clk 0:01:50]} 24. Ne4 {[%clk 0:01:36]}  Rg8+ {[%clk 0:01:37]} 25. Kh2 {[%clk 0:01:29]}  Bd5 {[%clk 0:01:27]} 26. Nd6+ {[%clk 0:01:25]}  Kc7 {[%clk 0:01:19]} 27. Rg1 {[%clk 0:01:21]}  Rhg6 {[%clk 0:01:18]} 28. Rxg6 {[%clk 0:00:51]}  Rxg6 {[%clk 0:01:15]} 29. e4 {[%clk 0:00:50]}  Be6 {[%clk 0:01:11]} 30. a4 {[%clk 0:00:47]}  b6 {[%clk 0:01:05]} 31. Rg1 {[%clk 0:00:40]}  Rxg1 {[%clk 0:01:02]} 32. Kxg1 {[%clk 0:00:41]}  bxc5 {[%clk 0:01:02]} 33. dxc5 {[%clk 0:00:42]}  a5 {[%clk 0:01:03]} 34. f4 {[%clk 0:00:35]}  Bb3 {[%clk 0:01:01]} 35. Kf2 {[%clk 0:00:32]}  Bxa4 {[%clk 0:01:01]} 36. Nxf7 {[%clk 0:00:30]}  Bb3 {[%clk 0:00:58]} 37. Ne5 {[%clk 0:00:28]}  a4 {[%clk 0:00:56]} 38. Nd3 {[%clk 0:00:26]}  Bc2 {[%clk 0:00:43]} 39. Nc1 {[%clk 0:00:17]}  Bxe4 {[%clk 0:00:42]} 40. Na2 {[%clk 0:00:12]}  a3 {[%clk 0:00:35]} 41. Ke3 {[%clk 0:00:02]}  Bb1 {[%clk 0:00:33]} 42. Nc1 {[%clk 0:00:01]}  a2 {[%clk 0:00:33]} 43. Nb3 {[%clk 0:00:02]}  h4 {[%clk 0:00:30]} 44. Kf2 {[%clk 0:00:02]}  Be4 {[%clk 0:00:28]} 45. Na1 {[%clk 0:00:02]}  Kd7 {[%clk 0:00:25]} 46. Ke3 {[%clk 0:00:02]}  h3 {[%clk 0:00:24]} 47. Kf2 {[%clk 0:00:02]}  h2 {[%clk 0:00:24]} 0-1


[Site "https://www.chess.com"]

[Event "Titled Tuesday Blitz July 05 Late 2022"]
[White "Sargsyan, Anna M."]
[Black "Eljanov, Pavel"]
[WhiteFideId "13308130"]
[BlackFideId "14102951"]
[WhiteElo "2271"]
[BlackElo "2601"]
[Result "0-1"]
[Round "09"]
[TimeControl "180+1"]
[Date "2022.07.05"]
[WhiteClock "0:00:02"]
[BlackClock "0:00:56"]

1. d4 {[%clk 0:03:00]}  f5 {[%clk 0:02:58]} 2. c4 {[%clk 0:02:57]}  Nf6 {[%clk 0:02:57]} 3. Nc3 {[%clk 0:02:51]}  e6 {[%clk 0:02:57]} 4. Qc2 {[%clk 0:02:49]}  Bb4 {[%clk 0:02:56]} 5. Nf3 {[%clk 0:02:48]}  b6 {[%clk 0:02:55]} 6. Bf4 {[%clk 0:02:45]}  Bb7 {[%clk 0:02:54]} 7. e3 {[%clk 0:02:45]}  O-O {[%clk 0:02:51]} 8. Bd3 {[%clk 0:02:45]}  Ne4 {[%clk 0:02:51]} 9. O-O {[%clk 0:02:44]}  Bxc3 {[%clk 0:02:52]} 10. bxc3 {[%clk 0:02:44]}  d6 {[%clk 0:02:49]} 11. h3 {[%clk 0:02:43]}  Nd7 {[%clk 0:02:49]} 12. Nd2 {[%clk 0:02:39]}  Nxd2 {[%clk 0:02:31]} 13. Qxd2 {[%clk 0:02:39]}  Qe7 {[%clk 0:02:28]} 14. Bh2 {[%clk 0:02:37]}  e5 {[%clk 0:02:27]} 15. a4 {[%clk 0:02:33]}  a5 {[%clk 0:02:25]} 16. Rab1 {[%clk 0:02:27]}  Bc6 {[%clk 0:02:10]} 17. Rfe1 {[%clk 0:02:10]}  Rae8 {[%clk 0:02:04]} 18. Bf1 {[%clk 0:01:50]}  Kh8 {[%clk 0:02:01]} 19. Qa2 {[%clk 0:01:32]}  Rf6 {[%clk 0:01:56]} 20. Bg3 {[%clk 0:01:30]}  Rg6 {[%clk 0:01:52]} 21. Bd3 {[%clk 0:01:11]}  Rf8 {[%clk 0:01:51]} 22. Qc2 {[%clk 0:01:06]}  Qg5 {[%clk 0:01:48]} 23. d5 {[%clk 0:00:43]}  Bb7 {[%clk 0:01:46]} 24. Bf1 {[%clk 0:00:43]}  Nc5 {[%clk 0:01:41]} 25. Bh2 {[%clk 0:00:40]}  Bc8 {[%clk 0:01:38]} 26. f4 {[%clk 0:00:38]}  Qe7 {[%clk 0:01:33]} 27. fxe5 {[%clk 0:00:35]}  dxe5 {[%clk 0:01:33]} 28. Kh1 {[%clk 0:00:34]}  Bd7 {[%clk 0:01:28]} 29. Ra1 {[%clk 0:00:32]}  Qe8 {[%clk 0:01:27]} 30. Be2 {[%clk 0:00:22]}  Bxa4 {[%clk 0:01:26]} 31. Qb2 {[%clk 0:00:17]}  Bd7 {[%clk 0:01:26]} 32. Bh5 {[%clk 0:00:17]}  Nd3 {[%clk 0:01:23]} 33. Qe2 {[%clk 0:00:11]}  Nxe1 {[%clk 0:01:22]} 34. Rxe1 {[%clk 0:00:12]}  Rxg2 {[%clk 0:01:18]} 35. Kxg2 {[%clk 0:00:10]}  g6 {[%clk 0:01:16]} 36. Bf3 {[%clk 0:00:10]}  e4 {[%clk 0:01:17]} 37. Bxc7 {[%clk 0:00:08]}  exf3+ {[%clk 0:01:09]} 38. Qxf3 {[%clk 0:00:09]}  a4 {[%clk 0:01:05]} 39. Bxb6 {[%clk 0:00:09]}  Qe7 {[%clk 0:01:03]} 40. Bd4+ {[%clk 0:00:08]}  Kg8 {[%clk 0:01:03]} 41. c5 {[%clk 0:00:09]}  Bb5 {[%clk 0:01:01]} 42. d6 {[%clk 0:00:09]}  Qe6 {[%clk 0:01:00]} 43. Rb1 {[%clk 0:00:07]}  Bd3 {[%clk 0:01:00]} 44. Qd1 {[%clk 0:00:04]}  Qe4+ {[%clk 0:00:59]} 45. Kh2 {[%clk 0:00:03]}  Bxb1 {[%clk 0:00:59]} 46. Qxa4 {[%clk 0:00:03]}  Qc2+ {[%clk 0:00:57]} 47. Qxc2 {[%clk 0:00:04]}  Bxc2 {[%clk 0:00:58]} 48. c6 {[%clk 0:00:04]}  Ba4 {[%clk 0:00:57]} 49. c7 {[%clk 0:00:03]}  Bd7 {[%clk 0:00:58]} 50. c4 {[%clk 0:00:03]}  g5 {[%clk 0:00:57]} 51. c5 {[%clk 0:00:01]}  Kf7 {[%clk 0:00:57]} 52. h4 {[%clk 0:00:01]}  h6 {[%clk 0:00:57]} 53. hxg5 {[%clk 0:00:01]}  hxg5 {[%clk 0:00:57]} 54. Kg3 {[%clk 0:00:02]}  Ke6 {[%clk 0:00:57]} 55. Bg7 {[%clk 0:00:01]}  Rg8 {[%clk 0:00:57]} 56. Bc3 {[%clk 0:00:02]}  Kd5 {[%clk 0:00:57]} 57. Bd4 {[%clk 0:00:02]}  Kc6 {[%clk 0:00:56]} 0-1


[Site "https://www.chess.com"]

[Event "Titled Tuesday Blitz July 05 Late 2022"]
[White "Silva Lucena, Cristian"]
[Black "Nguyen, Quoc Hy"]
[WhiteFideId "2232588"]
[BlackFideId "12410853"]
[WhiteElo "2223"]
[BlackElo "1938"]
[Result "1-0"]
[Round "09"]
[TimeControl "180+1"]
[Date "2022.07.05"]
[WhiteClock "0:00:12"]
[BlackClock "0:00:06"]

1. e4 {[%clk 0:02:46]}  c5 {[%clk 0:02:58]} 2. Nf3 {[%clk 0:02:46]}  Nc6 {[%clk 0:02:58]} 3. d4 {[%clk 0:02:47]}  cxd4 {[%clk 0:02:59]} 4. Nxd4 {[%clk 0:02:47]}  Nf6 {[%clk 0:03:00]} 5. Nc3 {[%clk 0:02:48]}  e5 {[%clk 0:03:00]} 6. Ndb5 {[%clk 0:02:49]}  d6 {[%clk 0:03:01]} 7. Bg5 {[%clk 0:02:49]}  a6 {[%clk 0:03:00]} 8. Na3 {[%clk 0:02:50]}  b5 {[%clk 0:03:01]} 9. Nd5 {[%clk 0:02:50]}  Be7 {[%clk 0:03:01]} 10. Bxf6 {[%clk 0:02:51]}  Bxf6 {[%clk 0:03:02]} 11. c3 {[%clk 0:02:51]}  O-O {[%clk 0:03:01]} 12. Nc2 {[%clk 0:02:52]}  Bg5 {[%clk 0:03:02]} 13. a4 {[%clk 0:02:52]}  Rb8 {[%clk 0:02:55]} 14. axb5 {[%clk 0:02:45]}  axb5 {[%clk 0:02:56]} 15. Bd3 {[%clk 0:02:44]}  Be6 {[%clk 0:02:54]} 16. Ncb4 {[%clk 0:02:42]}  Nxb4 {[%clk 0:02:45]} 17. Nxb4 {[%clk 0:02:43]}  g6 {[%clk 0:02:42]} 18. Nc6 {[%clk 0:02:39]}  Qf6 {[%clk 0:02:30]} 19. Nxb8 {[%clk 0:02:35]}  Rxb8 {[%clk 0:02:31]} 20. O-O {[%clk 0:02:35]}  h5 {[%clk 0:02:31]} 21. Qe2 {[%clk 0:02:30]}  b4 {[%clk 0:02:29]} 22. Bc4 {[%clk 0:02:30]}  Bd7 {[%clk 0:02:15]} 23. Ra7 {[%clk 0:02:24]}  Bg4 {[%clk 0:01:50]} 24. f3 {[%clk 0:02:11]}  Be6 {[%clk 0:01:50]} 25. Bxe6 {[%clk 0:02:10]}  Qxe6 {[%clk 0:01:50]} 26. Ra6 {[%clk 0:01:57]}  h4 {[%clk 0:01:43]} 27. Rd1 {[%clk 0:01:55]}  Qb3 {[%clk 0:01:37]} 28. Raxd6 {[%clk 0:01:49]}  bxc3 {[%clk 0:01:37]} 29. bxc3 {[%clk 0:01:46]}  Qxc3 {[%clk 0:01:37]} 30. h3 {[%clk 0:01:44]}  Rb2 {[%clk 0:01:30]} 31. Qe1 {[%clk 0:01:44]}  Qc2 {[%clk 0:01:27]} 32. Qf1 {[%clk 0:01:43]}  Be3+ {[%clk 0:00:59]} 33. Kh1 {[%clk 0:01:42]}  Bd4 {[%clk 0:00:56]} 34. Rd8+ {[%clk 0:01:42]}  Kg7 {[%clk 0:00:56]} 35. Rc1 {[%clk 0:01:34]}  Qd2 {[%clk 0:00:50]} 36. Rd7 {[%clk 0:01:26]}  Qb4 {[%clk 0:00:47]} 37. Qe1 {[%clk 0:01:17]}  Qb5 {[%clk 0:00:45]} 38. Rd5 {[%clk 0:01:05]}  Qd3 {[%clk 0:00:41]} 39. Qxh4 {[%clk 0:00:38]}  Qd2 {[%clk 0:00:40]} 40. Rg1 {[%clk 0:00:39]}  Qc2 {[%clk 0:00:31]} 41. Rxd4 {[%clk 0:00:32]}  exd4 {[%clk 0:00:32]} 42. e5 {[%clk 0:00:32]}  d3 {[%clk 0:00:31]} 43. Qf6+ {[%clk 0:00:31]}  Kg8 {[%clk 0:00:30]} 44. e6 {[%clk 0:00:31]}  fxe6 {[%clk 0:00:22]} 45. Qxg6+ {[%clk 0:00:30]}  Kf8 {[%clk 0:00:22]} 46. Qf6+ {[%clk 0:00:30]}  Kg8 {[%clk 0:00:23]} 47. Qxe6+ {[%clk 0:00:31]}  Kg7 {[%clk 0:00:23]} 48. Qg4+ {[%clk 0:00:29]}  Kh7 {[%clk 0:00:21]} 49. Re1 {[%clk 0:00:27]}  Rb1 {[%clk 0:00:19]} 50. Qf5+ {[%clk 0:00:21]}  Kg7 {[%clk 0:00:18]} 51. Qe5+ {[%clk 0:00:20]}  Kh7 {[%clk 0:00:17]} 52. Qe7+ {[%clk 0:00:20]}  Kg8 {[%clk 0:00:16]} 53. Qe8+ {[%clk 0:00:19]}  Kg7 {[%clk 0:00:17]} 54. Qe7+ {[%clk 0:00:19]}  Kg8 {[%clk 0:00:17]} 55. Qg5+ {[%clk 0:00:20]}  Kh7 {[%clk 0:00:17]} 56. Qh4+ {[%clk 0:00:20]}  Kg7 {[%clk 0:00:17]} 57. Qd4+ {[%clk 0:00:19]}  Kg8 {[%clk 0:00:16]} 58. Qd5+ {[%clk 0:00:18]}  Kg7 {[%clk 0:00:17]} 59. Qe5+ {[%clk 0:00:19]}  Kh7 {[%clk 0:00:16]} 60. Qe4+ {[%clk 0:00:18]}  Kg8 {[%clk 0:00:16]} 61. Rxb1 {[%clk 0:00:19]}  Qxb1+ {[%clk 0:00:16]} 62. Kh2 {[%clk 0:00:20]}  Qb8+ {[%clk 0:00:16]} 63. f4 {[%clk 0:00:18]}  Qd6 {[%clk 0:00:13]} 64. Qc4+ {[%clk 0:00:16]}  Kg7 {[%clk 0:00:13]} 65. Qc3+ {[%clk 0:00:15]}  Kg6 {[%clk 0:00:12]} 66. Qd2 {[%clk 0:00:16]}  Qd4 {[%clk 0:00:10]} 67. g4 {[%clk 0:00:14]}  Qe4 {[%clk 0:00:10]} 68. Kg3 {[%clk 0:00:14]}  Kf7 {[%clk 0:00:10]} 69. f5 {[%clk 0:00:13]}  Qe5+ {[%clk 0:00:10]} 70. Kh4 {[%clk 0:00:14]}  Qh8+ {[%clk 0:00:10]} 71. Kg3 {[%clk 0:00:14]}  Qe5+ {[%clk 0:00:10]} 72. Kf3 {[%clk 0:00:14]}  Qd4 {[%clk 0:00:06]} 73. Qe3 {[%clk 0:00:13]}  Qd5+ {[%clk 0:00:06]} 74. Kf2 {[%clk 0:00:10]}  d2 {[%clk 0:00:06]} 75. Qe6+ {[%clk 0:00:10]}  Qxe6 {[%clk 0:00:05]} 76. fxe6+ {[%clk 0:00:11]}  Kxe6 {[%clk 0:00:06]} 77. Ke2 {[%clk 0:00:12]} 1-0


[Site "https://www.chess.com"]

[Event "Titled Tuesday Blitz July 05 Late 2022"]
[White "Skytte, Rasmus"]
[Black "Fishbein, Alexander"]
[WhiteFideId "1404210"]
[BlackFideId "2000377"]
[WhiteElo "2430"]
[BlackElo "2410"]
[Result "0-1"]
[Round "09"]
[TimeControl "180+1"]
[Date "2022.07.06"]
[WhiteClock "0:00:04"]
[BlackClock "0:00:03"]

1. d4 {[%clk 0:02:27]}  Nf6 {[%clk 0:02:58]} 2. c4 {[%clk 0:02:26]}  c5 {[%clk 0:02:57]} 3. d5 {[%clk 0:02:26]}  b5 {[%clk 0:02:57]} 4. Qc2 {[%clk 0:02:26]}  b4 {[%clk 0:02:55]} 5. e4 {[%clk 0:02:25]}  d6 {[%clk 0:02:53]} 6. Bd3 {[%clk 0:02:23]}  g6 {[%clk 0:02:53]} 7. Nf3 {[%clk 0:02:21]}  Bg7 {[%clk 0:02:52]} 8. O-O {[%clk 0:02:21]}  O-O {[%clk 0:02:52]} 9. h3 {[%clk 0:02:20]}  e6 {[%clk 0:02:52]} 10. Bf4 {[%clk 0:02:18]}  exd5 {[%clk 0:02:46]} 11. exd5 {[%clk 0:02:17]}  Re8 {[%clk 0:02:41]} 12. Nbd2 {[%clk 0:02:17]}  a5 {[%clk 0:02:40]} 13. Rae1 {[%clk 0:02:16]}  Ra7 {[%clk 0:02:26]} 14. Rxe8+ {[%clk 0:02:11]}  Nxe8 {[%clk 0:02:24]} 15. Ne4 {[%clk 0:02:00]}  Bf5 {[%clk 0:02:11]} 16. Bg5 {[%clk 0:01:51]}  Qd7 {[%clk 0:01:57]} 17. Re1 {[%clk 0:01:50]}  Bxe4 {[%clk 0:01:50]} 18. Rxe4 {[%clk 0:01:49]}  Nf6 {[%clk 0:01:45]} 19. Re1 {[%clk 0:01:45]}  Na6 {[%clk 0:01:42]} 20. Nd2 {[%clk 0:01:41]}  Ra8 {[%clk 0:01:39]} 21. Bf4 {[%clk 0:01:10]}  Re8 {[%clk 0:01:37]} 22. Rxe8+ {[%clk 0:01:09]}  Nxe8 {[%clk 0:01:37]} 23. b3 {[%clk 0:01:03]}  Nac7 {[%clk 0:01:36]} 24. Be2 {[%clk 0:00:59]}  Qe7 {[%clk 0:01:35]} 25. Bf3 {[%clk 0:00:56]}  Qe1+ {[%clk 0:01:28]} 26. Kh2 {[%clk 0:00:56]}  Be5 {[%clk 0:01:25]} 27. Bxe5 {[%clk 0:00:51]}  Qxe5+ {[%clk 0:01:24]} 28. g3 {[%clk 0:00:51]}  f5 {[%clk 0:01:20]} 29. Kg2 {[%clk 0:00:49]}  Nf6 {[%clk 0:01:19]} 30. h4 {[%clk 0:00:48]}  Nce8 {[%clk 0:01:09]} 31. Nf1 {[%clk 0:00:41]}  f4 {[%clk 0:01:04]} 32. Qd2 {[%clk 0:00:37]}  fxg3 {[%clk 0:01:00]} 33. Nxg3 {[%clk 0:00:36]}  Ng7 {[%clk 0:00:54]} 34. Qg5 {[%clk 0:00:32]}  Qe7 {[%clk 0:00:20]} 35. h5 {[%clk 0:00:21]}  Kf7 {[%clk 0:00:15]} 36. hxg6+ {[%clk 0:00:16]}  hxg6 {[%clk 0:00:15]} 37. Qf4 {[%clk 0:00:16]}  Qe5 {[%clk 0:00:13]} 38. Qh6 {[%clk 0:00:14]}  Nf5 {[%clk 0:00:11]} 39. Qh8 {[%clk 0:00:10]}  Nxg3 {[%clk 0:00:09]} 40. fxg3 {[%clk 0:00:10]}  Qb2+ {[%clk 0:00:09]} 41. Kh3 {[%clk 0:00:10]}  Qe5 {[%clk 0:00:09]} 42. Qc8 {[%clk 0:00:09]}  g5 {[%clk 0:00:08]} 43. Qc7+ {[%clk 0:00:08]}  Kg6 {[%clk 0:00:06]} 44. Bg4 {[%clk 0:00:04]}  Qe4 {[%clk 0:00:03]} 0-1


[Site "https://www.chess.com"]